bitfinex-derivatives/quotes_ETHF0:USTF0_20251126
["timestamp","ask_amount","ask_price","bid_price","bid_amount"]
[1764188648993,0.00496541,3020.2,3020.1,0.4498]
[1764188650288,1.77006533,3021.0,3020.9,0.4498]
[1764188650289,1.64884694,3021.0,3020.9,0.4498]
[1764188650494,1.21558837,3021.0,3020.9,0.4498]
[1764188651401,0.00496541,3021.3,3021.2,0.4498]
[1764188651902,0.16552,3021.6,3021.5,0.7312]
[1764188652301,0.91317678,3021.6,3021.5,0.7312]
[1764188653697,0.16552,3021.6,3021.5,0.7312]
[1764188657902,0.00496541,3021.9,3021.8,0.4498]
[1764188659909,0.4708,3022.7,3022.6,0.4498]
[1764188660102,1.21679553,3022.7,3022.6,0.4498]
[1764188660906,0.63626,3022.6,3022.5,0.7312]
[1764188661102,1.38225553,3022.6,3022.5,0.73507826]
[1764188662117,0.63626,3022.6,3022.5,0.73507826]
[1764188662409,0.25366541,3023.0,3022.9,0.4498]
[1764188662410,0.00496541,3023.0,3022.9,0.4498]
[1764188662611,0.47576541,3023.0,3022.5,0.28527826]
[1764188662816,0.4708,3022.6,3022.5,0.73507826]
[1764188663507,0.47327059,3022.6,3022.5,0.73507826]
[1764188663906,0.00247059,3022.6,3022.5,0.73507826]
[1764188666013,0.63873059,3022.6,3022.5,0.00387826]
[1764188666618,0.63873059,3022.6,3022.5,0.73507826]
[1764188667917,0.63873059,3022.6,3022.5,0.00387826]
[1764188671025,0.63873059,3022.6,3022.5,0.73507826]
[1764188671520,0.63873059,3022.6,3022.5,0.28527826]
[1764188672523,0.63873059,3022.6,3022.5,0.73507826]
[1764188674514,0.16793059,3022.6,3022.5,0.73507826]
[1764188675020,0.63873059,3022.6,3022.5,0.73507826]
[1764188676426,0.63873059,3022.6,3022.5,0.00387826]
[1764188676623,1.38410746,3022.6,3022.5,0.00387826]
[1764188680030,1.38410746,3022.6,3022.5,0.77767826]
[1764188680231,1.37210746,3022.6,3022.5,0.00387826]
[1764188680836,1.37210746,3022.6,3022.5,0.77767826]
[1764188681029,1.37210746,3022.6,3022.5,0.00387826]
[1764188681225,0.62429,3022.1,3021.5,0.2814]
[1764188681435,0.62429,3022.1,3022.0,0.7738]
[1764188681634,1.37278945,3022.1,3022.0,0.7738]
[1764188682234,1.37278945,3022.1,3022.0,0.77736302]
[1764188682532,0.91398945,3022.1,3022.0,0.77736302]
[1764188683337,1.37278945,3022.1,3022.0,0.77736302]
[1764188685435,2.55162191,3022.1,3022.0,0.00356302]
[1764188685635,1.37278945,3022.1,3022.0,0.00356302]
[1764188685837,1.80391128,3022.1,3022.0,0.00356302]
[1764188686140,1.37278945,3022.1,3022.0,0.00356302]
[1764188686339,1.80393639,3022.1,3022.0,0.00356302]
[1764188686540,1.37278945,3022.1,3022.0,0.00356302]
[1764188686945,1.80393274,3022.1,3022.0,0.00356302]
[1764188687141,2.55243219,3022.1,3022.0,0.00356302]
[1764188687342,0.91398945,3022.1,3022.0,0.77736302]
[1764188687839,1.37278945,3022.1,3022.0,0.77736302]
[1764188688051,2.55252159,3022.1,3022.0,0.77736302]
[1764188688533,2.55252159,3022.1,3022.0,0.00356302]
[1764188688740,1.37278945,3022.1,3022.0,0.00356302]
[1764188688941,3.14103814,3022.1,3022.0,0.00356302]
[1764188690749,1.37278945,3022.1,3022.0,0.00356302]
[1764188691147,1.34487852,3022.1,3022.0,0.77736302]
[1764188691445,0.91398945,3022.1,3022.0,0.77736302]
[1764188691646,1.37278945,3022.1,3022.0,0.77736302]
[1764188693648,0.91398945,3022.1,3022.0,0.77736302]
[1764188696146,0.74849945,3022.1,3022.0,0.77736302]
[1764188696445,0.00247059,3022.6,3022.5,0.7738]
[1764188696651,0.75387583,3022.6,3022.5,0.7738]
[1764188697248,0.00247059,3022.6,3022.5,0.7738]
[1764188697453,0.00496541,3023.0,3022.9,0.4849]
[1764188697641,0.75626772,3023.0,3022.9,0.4849]
[1764188698449,0.75964418,3023.0,3022.9,0.4849]
[1764188700249,2.22704869,3023.7,3023.6,0.4849]
[1764188700444,0.4588,3023.7,3023.6,0.4849]
[1764188700643,0.4588,3023.9,3023.8,0.4849]
[1764188700846,0.4588,3023.1,3023.0,0.7738]
[1764188701054,1.76824869,3023.9,3023.0,0.7738]
[1764188701356,0.16541,3023.6,3023.1,0.00496541]
[1764188701647,0.46209073,3023.8,3023.7,0.4849]
[1764188702855,0.4588,3023.6,3023.5,0.2889]
[1764188703553,0.4588,3023.6,3023.1,0.00496541]
[1764188703755,0.4588,3023.6,3023.5,0.2889]
[1764188704049,0.4588,3023.2,3023.1,0.00496541]
[1764188704247,0.4588,3023.2,3023.1,0.48986541]
[1764188705752,0.4588,3023.2,3023.1,0.00496541]
[1764188706151,0.4588,3023.2,3023.1,0.47086541]
[1764188706858,0.66102,3023.4,3023.3,0.4659]
[1764188708446,0.16542,3023.4,3023.3,0.4659]
[1764188708650,0.65942,3023.4,3023.3,0.4659]
[1764188709245,0.494,3023.2,3023.1,0.00496541]
[1764188709447,0.65942,3023.4,3023.3,0.4783]
[1764188710048,0.494,3023.2,3023.1,0.00496541]
[1764188710248,0.65943,3023.2,3023.1,0.00496541]
[1764188711856,0.16543,3023.2,3023.1,0.48326541]
[1764188712058,0.65943,3023.2,3023.1,0.48326541]
[1764188712252,0.65943,3023.2,3023.1,0.00496541]
[1764188712756,0.65943,3023.2,3023.1,0.48326541]
[1764188713452,1.39817284,3023.2,3023.1,0.48326541]
[1764188713857,0.65943,3023.2,3023.1,0.48326541]
[1764188714253,1.39814623,3023.2,3023.1,0.00496541]
[1764188716361,1.39814623,3023.2,3023.1,0.48326541]
[1764188718458,1.39814623,3023.2,3023.1,0.00496541]
[1764188724274,1.39814623,3023.2,3022.0,0.76496302]
[1764188724275,0.16549,3022.1,3022.0,0.76496302]
[1764188724665,0.90420623,3022.1,3022.0,0.76496302]
[1764188724865,0.73871623,3022.1,3022.0,6.76496302]
[1764188725168,0.16546,3022.6,3022.0,6.76496302]
[1764188725362,1.23601562,3022.5,3022.4,0.4783]
[1764188725562,1.40148562,3022.5,3022.4,0.4783]
[1764188725759,1.40148562,3022.5,3022.0,0.28666302]
[1764188725760,0.494,3022.1,3022.0,0.28666302]
[1764188726072,1.23601562,3022.1,3022.0,0.28666302]
[1764188726270,1.40150562,3022.1,3022.0,0.28666302]
[1764188726572,1.40150562,3022.1,3022.0,0.00356302]
[1764188730368,0.494,3021.8,3021.0,0.2831]
[1764188730580,0.65952,3021.5,3021.4,0.4783]
[1764188730872,1.39935854,3021.5,3021.4,0.4783]
[1764188731271,0.65952,3021.5,3021.4,0.4783]
[1764188731471,0.16955296,3021.5,3021.4,0.48199767]
[1764188732771,0.66355296,3021.5,3021.4,0.48199767]
[1764188734468,0.16955296,3021.5,3021.4,0.48199767]
[1764188739075,0.00403296,3021.5,3021.4,0.48199767]
[1764188739279,0.00496541,3021.8,3021.7,0.4829]
[1764188740376,0.00863146,3021.8,3021.7,0.4829]
[1764188742784,0.16547,3022.5,3022.0,0.2877]
[1764188742980,0.73932344,3022.4,3022.3,0.4829]
[1764188743176,0.16547,3022.5,3022.4,0.4829]
[1764188743876,0.62912375,3022.5,3022.4,0.4829]
[1764188745287,0.16922375,3022.5,3022.4,0.4829]
[1764188745583,0.62912375,3022.5,3022.4,0.4829]
[1764188750689,0.16922375,3022.5,3022.4,0.4829]
[1764188753987,0.00375375,3022.5,3022.4,0.4829]
[1764188754187,0.00496541,3022.8,3022.7,0.4829]
[1764188755683,0.16543,3023.2,3023.1,0.4829]
[1764188756791,0.16781224,3023.2,3023.1,0.4829]
[1764188757493,0.00238224,3023.2,3023.1,0.4829]
[1764188758490,0.00238224,3023.2,3023.1,2.12447103]
[1764188759192,0.00329073,3023.5,3023.4,0.4829]
[1764188759496,1.17584836,3024.5,3024.4,0.4829]
[1764188759799,0.16534,3024.8,3024.7,0.4829]
[1764188760289,0.74198864,3024.8,3024.7,0.48536516]
[1764188760489,1.17584836,3025.7,3025.2,0.4829]
[1764188760684,1.34111836,3026.1,3025.5,0.2877]
[1764188760889,0.4599,3024.8,3024.7,0.48536516]
[1764188761093,2.10147103,3024.8,3024.7,0.00246516]
[1764188761293,0.4599,3024.8,3024.7,0.00246516]
[1764188761499,2.10428958,3024.8,3024.7,0.00246516]
[1764188761704,0.46271855,3024.8,3024.7,0.00246516]
[1764188762196,0.46271855,3024.8,3024.7,0.48536516]
[1764188762798,0.46271855,3024.8,3024.7,0.00246516]
[1764188763392,0.46271855,3024.8,3024.7,0.48536516]
[1764188763899,0.46271855,3024.8,3024.7,0.00246516]
[1764188764100,0.62805855,3024.8,3024.7,0.00246516]
[1764188764499,0.62805855,3024.8,3024.4,0.00496541]
[1764188764500,0.4599,3024.5,3024.4,0.00496541]
[1764188764703,0.16815855,3024.8,3024.5,0.2877]
[1764188765002,0.4599,3024.6,3024.5,0.7706]
[1764188765496,0.4599,3024.6,3024.5,0.77406302]
[1764188765698,0.62525,3024.6,3024.5,0.00346302]
[1764188766407,0.7303,3024.5,3022.7,4.24580156]
[1764188766700,0.16538,3024.1,3024.0,0.741]
[1764188767406,0.16535,3024.6,3024.0,0.74511611]
[1764188767603,0.62647,3024.3,3024.2,0.4651]
[1764188767904,0.4611,3024.1,3024.0,0.74511611]
[1764188769899,0.16537,3024.2,3024.1,0.4651]
[1764188770403,0.4611,3024.1,3024.0,0.28001611]
[1764188770608,0.4611,3024.1,3024.0,0.74511611]
[1764188772708,0.16537,3024.2,3024.1,0.4651]
[1764188774509,0.62647,3024.2,3024.1,0.4651]
[1764188776418,0.16537,3024.2,3024.1,0.4651]
[1764188776601,0.62647,3024.2,3024.1,0.4651]
[1764188777510,0.16537,3024.2,3024.1,0.4651]
[1764188777807,0.62647,3024.2,3024.1,0.4651]
[1764188778210,0.62648,3024.1,3024.0,0.00411611]
[1764188779313,0.62648,3024.1,3024.0,0.28001611]
[1764188779518,0.62648,3024.1,3024.0,0.74511611]
[1764188780804,0.16538,3024.1,3024.0,0.74511611]
[1764188781000,0.00496541,3024.4,3024.3,0.4651]
[1764188781206,0.46606541,3024.4,3024.3,0.4651]
[1764188782214,1.20134264,3024.4,3024.3,0.4651]
[1764188782405,1.36670264,3024.4,3024.3,0.4651]
[1764188786512,0.62648,3024.1,3024.0,0.74511611]
[1764188786819,1.36175723,3024.1,3024.0,0.74511611]
[1764188787910,0.90065723,3024.1,3024.0,0.74511611]
[1764188789914,1.36175723,3024.1,3024.0,0.74511611]
[1764188791521,1.36175723,3024.1,3024.0,0.00411611]
[1764188791816,0.62649,3023.8,3023.7,0.00496541]
[1764188792015,2.26770012,3023.8,3023.7,0.00496541]
[1764188792322,1.36176723,3023.8,3023.7,0.00496541]
[1764188792516,3.00297735,3023.8,3023.7,0.00496541]
[1764188792923,3.00297735,3023.8,3023.7,0.00785573]
[1764188793122,0.1654,3023.7,3023.6,0.4651]
[1764188793324,1.36177723,3023.7,3023.6,0.4651]
[1764188794022,0.62651,3023.6,3023.5,0.2759]
[1764188794219,1.36178723,3023.6,3023.5,0.2759]
[1764188794418,1.36178723,3023.6,3023.5,0.00249558]
[1764188794722,3.00299735,3023.6,3023.5,0.00249558]
[1764188799121,1.36178723,3023.6,3023.5,0.00249558]
[1764188799325,1.36178723,3023.6,3023.5,0.74329558]
[1764188800820,1.36178723,3023.6,3023.5,0.00249558]
[1764188801722,3.00299735,3023.6,3023.5,0.00249558]
[1764188804533,1.36178723,3023.6,3023.5,0.00249558]
[1764188808728,3.00367236,3023.6,3023.5,0.00249558]
[1764188808931,0.4573,3023.4,3022.5,4.0733]
[1764188809135,1.64188513,3023.2,3022.5,0.2803]
[1764188809335,0.73527723,3023.1,3022.5,0.2803]
[1764188809530,0.62274,3023.0,3022.9,0.4645]
[1764188809737,0.16544,3023.0,3022.9,0.4645]
[1764188809936,0.16544,3023.0,3022.9,0.46706902]
[1764188810137,0.62274,3023.0,3022.9,0.46706902]
[1764188810938,0.16544,3023.0,3022.9,0.46706902]
[1764188811833,0.16541,3023.5,3023.0,0.2763]
[1764188812039,1.19363789,3023.4,3023.3,0.4645]
[1764188814340,0.73633789,3023.4,3023.3,2.10638513]
[1764188814536,1.17897425,3024.1,3023.3,2.10638513]
[1764188814734,1.17897425,3024.1,3023.3,0.4645]
[1764188815642,0.62269,3023.8,3023.7,0.4645]
[1764188816635,0.16539,3023.8,3023.7,0.4645]
[1764188817541,0.62269,3023.8,3023.7,0.4645]
[1764188819951,0.16539,3023.8,3023.7,0.4645]
[1764188820251,1.17897425,3024.2,3024.1,0.4645]
[1764188820552,0.17032541,3024.4,3024.0,0.7408]
[1764188820747,0.62762541,3024.4,3024.3,0.4645]
[1764188821148,0.17032541,3024.4,3024.3,0.4645]
[1764188821761,0.4573,3024.1,3023.5,1.46293145]
[1764188821949,0.4573,3023.6,3023.5,0.7408]
[1764188822348,1.64188513,3024.0,3023.5,0.7408]
[1764188822752,1.17897425,3024.2,3023.5,0.7408]
[1764188823255,0.62269,3023.9,3023.8,0.4645]
[1764188823460,1.18393966,3024.4,3024.1,0.4645]
[1764188823660,0.00496541,3024.4,3024.1,0.4645]
[1764188824050,0.46226541,3024.4,3024.3,0.4645]
[1764188824252,0.00496541,3024.4,3024.3,0.4645]
[1764188825050,0.46226541,3024.4,3024.3,0.4645]
[1764188825257,0.00496541,3024.4,3024.3,0.4645]
[1764188829250,0.00496541,3024.4,3024.3,2.10638513]
[1764188831854,0.48676541,3024.4,3024.3,0.4645]
[1764188832055,0.00496541,3024.4,3024.3,0.4645]
[1764188839359,0.00496541,3024.4,3024.0,0.7685]
[1764188839360,0.4818,3024.1,3024.0,0.7685]
[1764188839861,0.16537,3024.2,3024.1,0.4922]
[1764188840362,0.4818,3024.1,3024.0,0.2763]
[1764188840859,0.4818,3024.1,3023.6,3.793]
[1764188841363,0.4818,3024.1,3023.2,3.793]
[1764188841758,0.64718,3024.1,3023.1,7.33596462]
[1764188842155,0.64718,3024.1,3023.1,1.51396462]
[1764188842355,0.4818,3023.6,3023.5,0.7685]
[1764188842666,0.4818,3023.6,3023.5,0.2763]
[1764188842861,0.4818,3023.1,3023.0,0.2763]
[1764188843161,0.4818,3023.1,3022.9,0.00256902]
[1764188843162,0.4818,3023.0,3022.9,0.00256902]
[1764188843356,0.4818,3022.7,3022.6,0.00496541]
[1764188843555,0.4818,3022.7,3022.6,0.49716541]
[1764188844353,0.4818,3022.7,3022.6,0.49994794]
[1764188847763,0.16542,3023.4,3022.6,0.49994794]
[1764188848163,0.64722,3023.4,3023.3,0.4922]
[1764188848369,0.64722,3023.4,3023.0,0.2869]
[1764188848571,0.4818,3024.0,3023.9,0.4922]
[1764188848866,0.4818,3024.0,3023.5,0.7791]
[1764188848867,0.4818,3023.6,3023.5,0.7791]
[1764188849573,0.16538,3024.0,3023.5,0.7791]
[1764188854674,0.64718,3024.0,3023.9,0.4922]
[1764188855972,0.16538,3024.0,3023.9,0.4922]
[1764188859470,0.4572,3023.6,3023.5,0.7558]
[1764188859780,0.00496541,3024.4,3023.7,0.4689]
[1764188859781,0.6226,3023.8,3023.7,0.4689]
[1764188863278,0.62262,3023.5,3023.4,0.4689]
[1764188863480,0.4572,3023.1,3023.0,0.2869]
[1764188863681,0.16544,3023.0,3022.6,0.00774794]
[1764188863873,0.4572,3022.7,3022.6,0.47664794]
[1764188865278,0.62264,3022.9,3022.8,0.4689]
[1764188865873,0.4572,3022.7,3022.6,0.47664794]
[1764188866079,0.62265,3022.7,3022.6,0.00774794]
[1764188866975,0.62265,3022.7,3022.6,0.47664794]
[1764188872484,0.62265,3022.7,3022.6,0.00774794]
[1764188873683,1.36045954,3022.7,3022.6,0.00774794]
[1764188875485,1.36045954,3022.7,3022.0,0.2869]
[1764188875486,0.4572,3022.1,3022.0,0.2869]
[1764188876191,0.4572,3022.1,3022.0,0.7558]
[1764188876492,0.46118772,3022.1,3022.0,0.75947529]
[1764188878591,0.00398772,3022.1,3022.0,0.75947529]
[1764188879093,0.62667772,3022.1,3022.0,0.00367529]
[1764188879293,0.16947772,3022.1,3022.0,0.7592]
[1764188880095,0.62667772,3022.1,3022.0,0.7592]
[1764188880297,0.62667772,3022.1,3022.0,0.76267362]
[1764188880687,0.16947772,3022.1,3022.0,0.76267362]
[1764188882001,0.00398772,3022.1,3022.0,0.76267362]
[1764188882895,0.16546,3022.6,3022.5,0.7592]
[1764188883099,0.73691125,3022.6,3022.0,0.76267362]
[1764188883289,2.46418276,3022.7,3022.0,0.76267362]
[1764188883489,0.73692294,3022.6,3022.0,0.76267362]
[1764188883690,0.62267,3022.5,3022.4,0.4689]
[1764188883899,0.62541963,3022.5,3022.4,0.4689]
[1764188884594,2.26859415,3022.5,3022.4,0.4689]
[1764188884791,3.00564986,3022.5,3022.0,0.29377362]
[1764188884991,2.26859415,3022.5,3022.0,0.29377362]
[1764188885193,2.11837452,3022.2,3022.1,0.4608]
[1764188886594,2.28385452,3022.2,3022.1,0.4608]
[1764188888098,0.4752,3022.1,3022.0,0.29377362]
[1764188888397,0.4752,3022.1,3022.0,0.74397362]
[1764188888892,0.16548,3022.2,3022.0,0.74397362]
[1764188889099,0.65188,3022.2,3022.1,0.4502]
[1764188889797,1.39027142,3022.2,3022.1,0.4502]
[1764188891002,0.90387142,3022.2,3022.1,0.4502]
[1764188892004,1.39027142,3022.2,3022.1,0.4502]
[1764188895311,0.90387142,3022.2,3022.1,0.4502]
[1764188896007,1.39027142,3022.2,3022.1,0.4502]
[1764188896509,0.4864,3022.1,3022.0,0.29377362]
[1764188896710,1.22479142,3022.1,3022.0,0.29377362]
[1764188896910,1.22479142,3022.1,3022.0,0.74397362]
[1764188898013,1.39028142,3022.1,3022.0,0.00347362]
[1764188899409,0.90388142,3022.1,3022.0,0.73237362]
[1764188899803,1.39028142,3022.1,3022.0,0.73237362]
[1764188903407,0.90388142,3022.1,3022.0,0.73237362]
[1764188903810,1.39028142,3022.1,3022.0,0.73237362]
[1764188904011,0.90388142,3022.1,3022.0,0.73237362]
[1764188905111,1.39028142,3022.1,3022.0,0.73237362]
[1764188906504,0.90388142,3022.1,3022.0,0.73237362]
[1764188907000,1.39028142,3022.1,3022.0,0.28217362]
[1764188907209,1.39028142,3022.1,3022.0,0.00347362]
[1764188907509,2.56925567,3022.1,3022.0,0.73237362]
[1764188907709,0.90388142,3022.1,3022.0,0.73237362]
[1764188909805,1.39028142,3022.1,3022.0,0.28217362]
[1764188910011,1.39028142,3022.1,3022.0,0.73237362]
[1764188912512,0.90388142,3022.1,3022.0,0.73237362]
[1764188912818,0.73839142,3022.1,3022.0,0.73237362]
[1764188913022,0.00274963,3022.5,3022.4,0.4502]
[1764188913211,0.74263452,3022.5,3022.4,0.4502]
[1764188916918,1.23703452,3022.5,3022.4,0.4502]
[1764188918119,1.40250452,3022.5,3022.0,0.28217362]
[1764188918320,0.4944,3022.1,3022.0,0.77217362]
[1764188918624,0.09712667,3022.1,3022.0,0.77217362]
[1764188918826,0.83915575,3022.1,3022.0,0.77217362]
[1764188919329,1.00464575,3022.1,3022.0,0.77217362]
[1764188919717,1.00464575,3022.1,3022.0,0.28217362]
[1764188920327,0.90751908,3022.1,3022.0,0.77217362]
[1764188920831,1.24971908,3022.1,3022.0,0.00347362]
[1764188921130,1.24971908,3022.1,3022.0,0.28807362]
[1764188921626,1.24971908,3022.1,3022.0,0.77807362]
[1764188921627,0.90751908,3022.1,3022.0,0.77807362]
[1764188921933,1.24971908,3022.1,3022.0,0.77807362]
[1764188925028,0.74202908,3022.1,3022.0,0.77807362]
[1764188925330,1.77100439,3022.5,3022.0,0.77807362]
[1764188925331,0.00274963,3022.5,3022.4,0.49]
[1764188925531,1.98829072,3022.5,3022.4,0.49]
[1764188925724,2.73101352,3022.5,3022.4,0.49]
[1764188926629,1.08767243,3022.5,3022.4,0.49]
[1764188926831,1.08767243,3022.5,3022.0,0.28807362]
[1764188927033,0.7427228,3022.4,3022.0,0.28807362]
[1764188927234,2.55121089,3022.4,3022.0,0.28807362]
[1764188927433,0.7427228,3022.3,3022.0,0.28807362]
[1764188927825,1.0849228,3022.3,3022.2,0.49]
[1764188929320,1.2504028,3022.3,3022.0,0.28807362]
[1764188929526,0.3422,3022.1,3022.0,0.77807362]
[1764188929732,1.0849228,3022.1,3022.0,0.77807362]
[1764188930839,0.7427228,3022.1,3022.0,0.77807362]
[1764188931034,1.08505582,3022.1,3022.0,0.28807362]
[1764188931634,1.08505582,3022.1,3022.0,0.77807362]
[1764188933036,0.74285582,3022.1,3022.0,0.77807362]
[1764188933732,2.89356391,3022.1,3022.0,0.00347362]
[1764188933936,2.89356391,3022.1,3022.0,0.77807362]
[1764188934234,1.25054582,3022.1,3022.0,0.77807362]
[1764188936234,1.25054582,3022.1,3022.0,0.28807362]
[1764188938440,2.89356391,3022.1,3022.0,0.28807362]
[1764188938940,2.89356391,3022.1,3022.0,0.00347362]
[1764188939140,2.89356391,3022.1,3022.0,0.28807362]
[1764188943342,0.3422,3021.8,3021.7,0.00496541]
[1764188943931,1.08505582,3021.8,3021.7,0.00496541]
[1764188944340,1.08505582,3021.8,3021.7,0.00876611]
[1764188944547,2.72807391,3021.8,3021.7,0.00876611]
[1764188944842,0.3422,3021.4,3021.3,3.793]
[1764188945033,0.3422,3021.4,3021.0,0.2903]
[1764188945437,0.50773,3021.4,3021.0,0.2903]
[1764188945642,0.16554,3021.2,3021.0,0.2903]
[1764188945833,0.50774,3021.2,3021.1,0.49]
[1764188947339,0.16554,3021.2,3021.1,0.49]
[1764188949045,0.50774,3021.2,3021.1,0.49]
[1764188951345,0.16554,3021.2,3021.1,0.49]
[1764188953144,0.3422,3021.6,3021.5,0.7739]
[1764188953338,0.50771,3021.7,3021.6,0.4922]
[1764188953648,1.25105361,3021.7,3021.6,0.4922]
[1764188956054,0.3422,3022.2,3022.1,0.4922]
[1764188956251,1.08562062,3022.2,3022.1,0.4922]
[1764188966057,1.25110062,3022.2,3022.1,0.4922]
[1764188967763,0.3422,3022.1,3022.0,0.2817]
[1764188968968,0.3422,3022.1,3022.0,0.7739]
[1764188969963,0.50768,3022.2,3022.1,0.4922]
[1764188970356,1.25181794,3022.2,3022.1,0.4922]
[1764188970557,0.90961794,3022.2,3022.1,0.4922]
[1764188970958,0.16548,3022.2,3022.1,0.4922]
[1764188971357,0.00274963,3022.5,3022.1,0.4922]
[1764188971556,0.00274963,3022.5,3022.4,0.4922]
[1764188971953,0.74687482,3022.5,3022.4,0.4922]
[1764188972171,0.00274963,3022.5,3022.4,0.4922]
[1764188973065,1.08890471,3022.5,3022.4,0.4922]
[1764188973270,0.34494963,3022.5,3022.4,0.4922]
[1764188977366,0.00274963,3022.5,3022.4,0.4922]
[1764188978762,0.34494963,3022.5,3022.0,0.2817]
[1764188979173,0.34494963,3022.5,3022.4,0.4679]
[1764188981672,0.34494963,3022.5,3022.0,0.2817]
[1764188981976,0.34494963,3022.5,3022.4,0.4679]
[1764188982673,0.51041963,3022.5,3022.0,0.2817]
[1764188984175,1.08698854,3022.4,3022.3,0.4679]
[1764188984377,1.25245854,3022.4,3022.0,0.2817]
[1764188984576,0.74478854,3022.3,3022.0,0.2817]
[1764188984787,1.08698854,3022.2,3022.1,0.4679]
[1764188985076,0.74478854,3022.2,3022.1,0.4679]
[1764188985278,0.50767,3022.4,3022.3,0.4679]
[1764188985480,1.25442012,3022.4,3022.3,0.4679]
[1764188986674,0.74675012,3022.4,3022.3,0.4679]
[1764188986871,0.00274963,3022.5,3022.4,0.4679]
[1764188987071,0.00496541,3022.8,3022.7,0.4679]
[1764188988178,0.00866976,3022.8,3022.7,0.4679]
[1764188994976,0.49216976,3022.8,3022.7,0.4679]
[1764188995583,0.4835,3022.6,3022.5,0.7366]
[1764188996981,0.65761976,3022.8,3022.7,0.4679]
[1764188997383,0.4835,3022.6,3022.5,0.7366]
[1764188998479,0.17411976,3022.8,3022.7,0.4679]
[1764188998480,0.65761976,3022.8,3022.7,0.4679]
[1764188998880,0.4835,3022.6,3022.5,0.2687]
[1764188999083,0.4835,3022.5,3022.4,0.47286541]
[1764188999478,0.17411976,3022.8,3022.5,0.2687]
[1764188999674,1.2267305,3022.7,3022.6,0.4679]
[1764189000384,0.4835,3022.5,3022.4,0.00496541]
[1764189000685,0.4835,3022.5,3022.4,0.47286541]
[1764189001084,1.22677555,3022.5,3022.4,0.47286541]
[1764189001782,1.22677555,3022.5,3022.4,0.00496541]
[1764189001783,3.31130828,3022.5,3022.4,0.00496541]
[1764189002796,1.39224555,3022.5,3022.4,0.47286541]
[1764189005200,1.49634555,3022.5,3022.4,0.00496541]
[1764189005390,0.4681,3021.6,3021.5,0.4619]
[1764189005784,1.21376455,3021.6,3021.5,0.4619]
[1764189006189,0.2489,3021.5,3021.0,0.29416571]
[1764189006390,0.4681,3021.3,3021.2,0.46686541]
[1764189006694,1.80837273,3021.7,3021.2,0.46686541]
[1764189006887,0.74505915,3021.6,3021.2,0.46686541]
[1764189007082,0.74505915,3021.5,3021.2,0.46686541]
[1764189007391,1.80837273,3021.7,3021.2,0.46686541]
[1764189007593,0.74458877,3021.6,3021.2,0.46686541]
[1764189007787,1.80837273,3021.7,3021.2,0.46686541]
[1764189007991,0.74425898,3021.6,3021.2,0.46686541]
[1764189008292,1.80837273,3021.7,3021.2,0.46686541]
[1764189009686,0.16552,3021.6,3021.2,0.46686541]
[1764189009882,0.4525,3021.3,3021.2,0.46686541]
[1764189011088,0.61802,3021.6,3021.5,0.4654]
[1764189011289,0.61802,3021.6,3021.5,0.7459]
[1764189011493,0.4525,3022.0,3021.9,0.4654]
[1764189011694,1.19534376,3022.1,3022.0,0.7459]
[1764189011889,1.19533105,3022.1,3022.0,0.7459]
[1764189012196,0.16548,3022.2,3022.1,0.4654]
[1764189012693,0.61798,3022.2,3022.1,0.4654]
[1764189013999,0.16548,3022.2,3022.1,0.4654]
[1764189014795,0.61798,3022.2,3022.1,0.4654]
[1764189016598,0.16548,3022.2,3022.1,0.4654]
[1764189017898,0.61798,3022.2,3022.1,0.4654]
[1764189018099,0.4525,3022.1,3022.0,0.7459]
[1764189018894,2.09536273,3022.1,3021.5,0.2805]
[1764189024293,0.4525,3022.1,3022.0,0.7459]
[1764189024505,2.16792467,3022.6,3022.5,0.4654]
[1764189024705,1.19608995,3022.6,3022.5,0.7459]
[1764189025694,1.19608995,3022.6,3022.5,0.4654]
[1764189025896,0.0731,3022.5,3022.0,0.2805]
[1764189026206,0.74358995,3022.4,3022.0,0.2805]
[1764189026396,1.19608995,3022.4,3022.3,0.4654]
[1764189026905,0.74358995,3022.4,3022.3,0.4654]
[1764189027094,0.4525,3022.5,3022.4,0.4654]
[1764189027298,1.19828105,3022.5,3022.4,0.4654]
[1764189027601,0.46116976,3022.8,3022.7,0.4654]
[1764189027995,1.2071098,3022.8,3022.7,0.4654]
[1764189037912,0.00866976,3022.8,3022.7,0.4654]
[1764189039013,0.4771,3021.9,3021.8,1.78494721]
[1764189039214,0.4771,3021.6,3021.5,0.7399]
[1764189039412,2.11996273,3021.6,3021.5,0.7399]
[1764189039612,0.4771,3021.3,3021.2,0.46436541]
[1764189039803,0.4771,3021.1,3021.0,0.00386571]
[1764189040009,0.4771,3020.6,3020.5,0.7278]
[1764189040614,0.16555,3021.0,3020.9,0.4594]
[1764189040819,0.64265,3021.0,3020.9,0.4594]
[1764189041011,0.00303549,3021.0,3020.9,0.46186025]
[1764189043919,0.00496541,3021.3,3021.2,0.4594]
[1764189045013,0.00856348,3021.3,3021.2,0.4594]
[1764189047827,0.2716,3022.5,3022.0,0.7278]
[1764189048018,1.22075497,3022.4,3022.3,0.4594]
[1764189048213,0.4771,3022.6,3022.5,0.4594]
[1764189048718,0.47961609,3022.6,3022.5,0.7278]
[1764189049410,0.4771,3022.3,3022.2,0.00496541]
[1764189050321,0.4771,3022.3,3022.2,0.46436541]
[1764189052420,0.00251609,3022.6,3022.2,0.46436541]
[1764189052924,0.4771,3022.3,3022.2,0.46436541]
[1764189053122,0.64258,3022.3,3022.2,0.00496541]
[1764189053629,1.38560503,3022.3,3022.2,0.00496541]
[1764189054317,0.4771,3022.3,3022.2,0.46436541]
[1764189054518,0.00251609,3022.6,3022.2,0.46436541]
[1764189057635,0.47961609,3022.6,3022.5,0.7278]
[1764189058243,0.00251609,3022.6,3022.5,0.7278]
[1764189060139,0.00251609,3022.6,3022.2,0.46436541]
[1764189060140,0.4771,3022.3,3022.2,0.46436541]
[1764189060341,0.4771,3022.3,3022.2,0.00496541]
[1764189060642,0.4771,3022.3,3022.2,0.46436541]
[1764189062841,0.16797609,3022.6,3022.2,0.46436541]
[1764189063146,0.47961609,3022.6,3022.5,0.7278]
[1764189063336,1.22248652,3022.6,3022.5,0.4594]
[1764189065443,1.22248652,3022.6,3022.2,0.00496541]
[1764189065444,0.4781,3022.3,3022.2,0.00496541]
[1764189065741,0.4781,3022.3,3022.2,0.46776541]
[1764189068945,0.64607609,3022.6,3022.2,0.00496541]